fUST/lending_fUST_20260118
["ID","MTS","AMOUNT","RATE_DAILY","PERIOD"]
[402644050,1768742786863,-10000.01,0.00010451,2]
[402644056,1768742823299,-165.45,0.00010221,2]
[402644057,1768742841658,-800.0,0.00010294,2]
[402644062,1768742991527,-249.67461348,0.00010243,2]
[402644063,1768742993845,-4750.32538652,0.00010243,2]
[402644066,1768743014613,-279.5779515,0.00010243,2]
[402644067,1768743017102,-212.04275117,0.00010243,2]
[402644068,1768743019125,-285.90611961,0.00010243,2]
[402644069,1768743021252,-226.04067442,0.00010243,2]
[402644070,1768743023960,203.64,9.654e-05,2]
[402644071,1768743024371,-3833.98545334,0.00010243,2]
[402644100,1768743038422,-372.26060694,0.00010376,2]
[402644101,1768743038432,-271.51,0.00010396,2]
[402644102,1768743038442,-800.0,0.00010398,2]
[402644103,1768743038451,-800.0,0.00010405,2]
[402644104,1768743038461,-225.21556919,0.00010448,2]
[402644105,1768743038471,-577.25211387,0.00010448,2]
[402644106,1768743038480,-500.0,0.00010448,2]
[402644107,1768743038490,-500.0,0.00010448,2]
[402644108,1768743038499,-500.0,0.00010448,2]
[402644109,1768743038508,-500.0,0.00010448,2]
[402644110,1768743038519,-500.0,0.00010448,2]
[402644111,1768743038529,-500.0,0.00010448,2]
[402644112,1768743038538,-500.0,0.00010448,2]
[402644113,1768743038548,-500.0,0.00010448,2]
[402644114,1768743038557,-500.0,0.00010448,2]
[402644115,1768743038567,-500.0,0.00010448,2]
[402644116,1768743038576,-500.0,0.00010448,2]
[402644117,1768743038586,-308.7706337,0.00010448,2]
[402644118,1768743038595,-412.07828017,0.00010448,2]
[402644119,1768743038604,-500.0,0.00010448,2]
[402644120,1768743038614,-500.0,0.00010448,2]
[402644121,1768743038623,-500.0,0.00010448,2]
[402644122,1768743038633,-500.0,0.00010448,2]
[402644123,1768743038642,-500.0,0.00010448,2]
[402644124,1768743038651,-497.81191125,0.00010448,2]
[402644125,1768743038661,-500.0,0.00010448,2]
[402644126,1768743038670,-500.0,0.00010448,2]
[402644127,1768743038680,-197.13674429,0.00010448,2]
[402644128,1768743038689,-500.0,0.00010448,2]
[402644129,1768743038699,-500.0,0.00010448,2]
[402644130,1768743038708,-500.0,0.00010448,2]
[402644131,1768743038718,-500.0,0.00010448,2]
[402644132,1768743038727,-500.0,0.00010448,2]
[402644133,1768743038737,-500.0,0.00010448,2]
[402644134,1768743038747,-500.0,0.00010448,2]
[402644135,1768743038757,-500.0,0.00010448,2]
[402644136,1768743038766,-500.0,0.00010448,2]
[402644137,1768743038776,-500.0,0.00010448,2]
[402644138,1768743038785,-500.0,0.00010448,2]
[402644139,1768743038795,-500.0,0.00010448,2]
[402644140,1768743038804,-500.0,0.00010448,2]
[402644141,1768743038814,-500.0,0.00010448,2]
[402644142,1768743038824,-500.0,0.00010448,2]
[402644143,1768743038834,-500.0,0.00010448,2]
[402644144,1768743038844,-500.0,0.00010448,2]
[402644145,1768743038855,-500.0,0.00010448,2]
[402644146,1768743038866,-500.0,0.00010448,2]
[402644147,1768743038878,-500.0,0.00010448,2]
[402644148,1768743038888,-300.0,0.00010448,2]
[402644149,1768743038898,-5374.77013003,0.0001045,2]
[402644150,1768743038908,-284.00784424,0.0001045,2]
[402644151,1768743038918,-206.81441669,0.0001045,2]
[402644152,1768743038928,-1836.25719168,0.00010451,2]
[402644175,1768743040612,-10491.63673615,0.00010451,2]
[402644177,1768743040623,-2425.71565645,0.00010451,2]
[402644459,1768743043400,-5374.77013,0.00010451,2]
[402644648,1768743095070,-9796.37,0.0001,2]
[402644649,1768743095311,-10000.01,0.0001,2]
[402644650,1768743095449,-260.75810347,0.0001,2]
[402644651,1768743095475,-10000.01,0.0001,2]
[402644652,1768743095592,-10000.01,0.0001,2]
[402644653,1768743095741,-10000.01,0.0001,2]
[402644654,1768743095906,-10000.01,0.0001,2]
[402644655,1768743096039,-10000.01,0.0001,2]
[402644656,1768743096158,-10000.01,0.0001,2]
[402644657,1768743096264,-10000.01,0.0001,2]
[402644658,1768743097339,-176.75493277,0.0001,2]
[402644659,1768743098982,185.49,8.873e-05,2]
[402644660,1768743100752,-247.32,9.556e-05,2]
[402644661,1768743100786,-9505.37,0.0001,2]
[402644662,1768743101735,-231.46878977,0.0001,2]
[402644663,1768743124988,-5000.0,9.881e-05,2]
[402644664,1768743125027,-0.01,9.981e-05,2]
[402644665,1768743125104,-799.99,9.981e-05,2]
[402644666,1768743125134,-800.0,9.983e-05,2]
[402644667,1768743125168,-800.0,9.991e-05,2]
[402644668,1768743125198,-800.0,9.992e-05,2]
[402644669,1768743125228,-800.0,9.999e-05,2]
[402644670,1768743125257,-800.0,9.999e-05,2]
[402644671,1768743125288,-100.03,9.999e-05,2]
[402644672,1768743125385,-199.97,9.999e-05,2]
[402644673,1768743125471,-199.97,0.0001,2]
[402644674,1768743125486,-9600.07,0.0001,2]
[402644675,1768743125501,-10000.01,0.0001,2]
[402644676,1768743125529,-10000.01,0.0001,2]
[402644677,1768743125632,-10000.01,0.0001,2]
[402644678,1768743125740,-10000.01,0.0001,2]
[402644679,1768743141059,-964.18357232,9.801e-05,2]
[402644680,1768743142517,-317.37317903,9.801e-05,2]
[402644681,1768743144006,-210.73383476,9.211e-05,2]
[402644682,1768743145438,-167.2141737,9.211e-05,2]
[402644683,1768743146475,-43.6673287,9.211e-05,2]
[402644684,1768743146512,-1686.46134864,9.648e-05,2]
[402644685,1768743146545,-1539.75264532,9.703e-05,2]
[402644686,1768743146599,-3460.24735468,9.703e-05,2]
[402644687,1768743146634,-1738.39047672,9.801e-05,2]
[402644688,1768743146663,-1523.22904656,9.9e-05,2]
[402644689,1768743146718,-3476.77095344,9.9e-05,2]
[402644690,1768743146778,-10000.01,0.0001,2]
[402644691,1768743146903,-10000.01,0.0001,2]
[402644692,1768743147035,-10000.01,0.0001,2]
[402644693,1768743152509,-10000.01,0.0001,2]
[402644694,1768743152534,-10000.01,0.0001,2]
[402644695,1768743152694,-10000.01,0.0001,2]
[402644696,1768743152860,-10000.01,0.0001,2]
[402644697,1768743153001,-10000.01,0.0001,2]
[402644698,1768743155599,-5000.0,9.9e-05,2]
[402644699,1768743168659,0.01,9.9e-05,2]
[402644700,1768743168682,4999.99,9.9e-05,2]
[402644701,1768743173717,820.87,7.523e-05,2]
[402644702,1768743174126,1641.75,8.207e-05,2]
[402644703,1768743174535,2462.62,8.891e-05,2]
[402644704,1768743174952,3283.49,9.575e-05,2]
[402644705,1768743186216,213.1764036,9.023e-05,2]
[402644706,1768743186291,-2815.26598287,9.899e-05,2]
[402644707,1768743192225,4369.47803426,9.899e-05,2]
[402644708,1768743192251,630.52196574,9.899e-05,2]
[402644709,1768743218275,-5000.0,9.898e-05,2]
[402644710,1768743249232,-3932.55601672,9.898e-05,2]
[402644711,1768743252739,1014.26,7.492e-05,2]
[402644712,1768743253158,1120.63796656,8.174e-05,2]
[402644713,1768743253182,907.89203344,8.174e-05,2]
[402644714,1768743253588,3042.79,8.855e-05,2]
[402644715,1768743254014,4057.05,9.536e-05,2]
[402644716,1768743256339,625.68416595,9.211e-05,2]
[402644717,1768743258009,1366.59380061,9.871e-05,2]
[402644718,1768743258034,1136.14286318,9.871e-05,2]
[402644719,1768743315115,-5000.0,9.799e-05,2]
[402644720,1768743328026,0.01,9.799e-05,2]
[402644721,1768743328052,2973.61258881,9.799e-05,2]
[402644722,1768743331802,907.55,7.539e-05,2]
[402644723,1768743332206,1815.11,8.224e-05,2]
[402644724,1768743332605,2722.66,8.91e-05,2]
[402644725,1768743333160,1581.07741119,9.595e-05,2]
[402644726,1768743333189,2049.14258881,9.595e-05,2]
[402644727,1768743391454,-179.55612335,9.898e-05,2]
[402644728,1768743391476,-300.0,9.997e-05,2]
[402644729,1768743391496,-300.0,9.997e-05,2]
[402644730,1768743391516,-220.44387665,9.998e-05,2]
[402644731,1768743393063,-79.55612335,9.998e-05,2]
[402644732,1768743393083,-300.0,9.998e-05,2]
[402644733,1768743393103,-300.0,9.998e-05,2]
[402644734,1768743393124,-320.44387665,9.998e-05,2]
[402644735,1768743393396,-879.55612335,9.998e-05,2]
[402644736,1768743393421,-120.44387665,9.999e-05,2]
[402644737,1768743393784,-322.60015521,9.999e-05,2]
[402644738,1768743393805,-677.39984479,9.999e-05,2]
[402644739,1768743394115,-1000.0,9.999e-05,2]
[402644740,1768743394460,-1000.0,9.999e-05,2]
[402644741,1768743394808,-1000.0,9.999e-05,2]
[402644742,1768743395166,-1000.0,9.999e-05,2]
[402644743,1768743395519,-1000.0,9.999e-05,2]
[402644744,1768743395864,-1000.0,9.999e-05,2]
[402644745,1768743396212,-1000.0,9.999e-05,2]
[402644746,1768743396829,-1000.0,9.999e-05,2]
[402644747,1768743396912,-221.0888753,9.798e-05,2]
[402644748,1768743396936,-778.9111247,9.999e-05,2]
[402644749,1768743397312,-1000.0,9.999e-05,2]
[402644750,1768743397652,-1000.0,9.999e-05,2]
[402644751,1768743397964,-1000.0,9.999e-05,2]
[402644752,1768743398305,-1000.0,9.999e-05,2]
[402644753,1768743398671,-1000.0,9.999e-05,2]
[402644754,1768743399046,-1000.0,9.999e-05,2]
[402644755,1768743399408,-1000.0,9.999e-05,2]
[402644756,1768743399753,-1000.0,9.999e-05,2]
[402644757,1768743400107,-1000.0,9.999e-05,2]
[402644758,1768743400471,-1000.0,9.92e-05,2]
[402644759,1768743400828,-1000.0,9.92e-05,2]
[402644760,1768743401195,-1000.0,9.92e-05,2]
[402644761,1768743401599,-1000.0,9.92e-05,2]
[402644762,1768743401897,-1000.0,9.92e-05,2]
[402644763,1768743402260,-1000.0,9.92e-05,2]
[402644764,1768743402612,-1000.0,9.92e-05,2]
[402644765,1768743403040,-1000.0,9.92e-05,2]
[402644766,1768743403340,-344.72989422,9.92e-05,2]
[402644767,1768743403361,-655.27010578,9.999e-05,2]
[402644768,1768743403715,-1000.0,9.999e-05,2]
[402644769,1768743404073,-1000.0,9.999e-05,2]
[402644770,1768743404439,-500.0,9.998e-05,2]
[402644771,1768743404458,-500.0,9.998e-05,2]
[402644772,1768743405538,-55.46034959,9.998e-05,2]
[402644773,1768743405560,-180.84568993,9.998e-05,2]
[402644774,1768743405582,-763.69396048,9.999e-05,2]
[402644775,1768743406005,-1000.0,9.999e-05,2]
[402644776,1768743406057,-1000.0,9.999e-05,2]
[402644777,1768743406111,-1000.0,9.999e-05,2]
[402644778,1768743406281,-1000.0,9.999e-05,2]
[402644779,1768743407554,-1000.0,9.999e-05,2]
[402644800,1768743411144,794.44,7.559e-05,2]
[402644804,1768743411552,1588.87,8.246e-05,2]
[402644805,1768743412002,2383.31,8.933e-05,2]
[402644810,1768743418754,-3177.75,9.62e-05,2]
[402644811,1768743423428,-300.0,9.997e-05,2]
[402644812,1768743423452,-500.0,9.998e-05,2]
[402644813,1768743423474,-200.0,9.998e-05,2]
[402644814,1768743424585,-146.17455673,9.998e-05,2]
[402644815,1768743424607,-616.96259191,9.998e-05,2]
[402644816,1768743424629,-236.86285136,9.998e-05,2]
[402644817,1768743424951,-263.13714864,9.998e-05,2]
[402644818,1768743424974,-616.96259191,9.998e-05,2]
[402644819,1768743424998,-119.90025945,9.998e-05,2]
[402644820,1768743425336,-497.06233246,9.998e-05,2]
[402644821,1768743425357,-500.0,9.998e-05,2]
[402644822,1768743425378,-2.93766754,9.998e-05,2]
[402644823,1768743425666,-614.02492437,9.998e-05,2]
[402644824,1768743425688,-385.97507563,9.998e-05,2]
[402644825,1768743426023,-114.02492437,9.998e-05,2]
[402644826,1768743426046,-616.96259191,9.998e-05,2]
[402644827,1768743426068,-269.01248372,9.998e-05,2]
[402644828,1768743426377,-230.98751628,9.998e-05,2]
[402644829,1768743426400,-616.96259191,9.998e-05,2]
[402644830,1768743426421,-152.04989181,9.998e-05,2]
[402644831,1768743426726,-347.95010819,9.998e-05,2]
[402644832,1768743426749,-616.96259191,9.998e-05,2]
[402644833,1768743426770,-35.0872999,9.998e-05,2]
[402644834,1768743427085,-464.9127001,9.998e-05,2]
[402644835,1768743427108,-535.0872999,9.998e-05,2]
[402644836,1768743427962,-81.87529201,9.998e-05,2]
[402644837,1768743427985,-500.0,9.998e-05,2]
[402644838,1768743428007,-418.12470799,9.998e-05,2]
[402644839,1768743428038,-198.83788392,9.998e-05,2]
[402644840,1768743428060,-500.0,9.998e-05,2]
[402644841,1768743428083,-301.16211608,9.998e-05,2]
[402644842,1768743428163,-315.80047583,9.998e-05,2]
[402644843,1768743428186,-500.0,9.998e-05,2]
[402644844,1768743428212,-184.19952417,9.998e-05,2]
[402644845,1768743428628,-432.76306774,9.998e-05,2]
[402644846,1768743428651,-500.0,9.998e-05,2]
[402644847,1768743428674,-67.23693226,9.998e-05,2]
[402644848,1768743429063,-549.72565965,9.998e-05,2]
[402644849,1768743429086,-450.27434035,9.998e-05,2]
[402644850,1768743430647,-49.72565965,9.998e-05,2]
[402644851,1768743430669,-314.68453784,9.998e-05,2]
[402644852,1768743430692,-616.96259191,9.998e-05,2]
[402644853,1768743430713,-18.6272106,9.998e-05,2]
[402644854,1768743431019,-481.3727894,9.998e-05,2]
[402644855,1768743431043,-518.6272106,9.998e-05,2]
[402644856,1768743431409,-98.33538131,9.998e-05,2]
[402644857,1768743431431,-500.0,9.998e-05,2]
[402644858,1768743431455,-401.66461869,9.998e-05,2]
[402644859,1768743431734,-215.29797322,9.998e-05,2]
[402644860,1768743431758,-616.96259191,9.998e-05,2]
[402644861,1768743431780,-167.73943487,9.998e-05,2]
[402644862,1768743432102,-332.26056513,9.998e-05,2]
[402644863,1768743432126,-616.96259191,9.998e-05,2]
[402644864,1768743432147,-50.77684296,9.998e-05,2]
[402644865,1768743432481,-566.18574895,9.998e-05,2]
[402644866,1768743432505,-433.81425105,9.998e-05,2]
[402644867,1768743436055,-66.18574895,9.998e-05,2]
[402644868,1768743436081,-616.96259191,9.998e-05,2]
[402644869,1768743436107,-316.85165914,9.998e-05,2]
[402644870,1768743436422,-183.14834086,9.998e-05,2]
[402644871,1768743436447,-616.96259191,9.998e-05,2]
[402644872,1768743436483,-199.88906723,9.998e-05,2]
[402644875,1768743436795,-300.11093277,9.998e-05,2]
[402644877,1768743436820,-616.96259191,9.998e-05,2]
[402644878,1768743436844,-82.92647532,9.998e-05,2]
[402644879,1768743437119,-417.07352468,9.998e-05,2]
[402644880,1768743437149,-582.92647532,9.998e-05,2]
[402644881,1768743437460,-34.03611659,9.998e-05,2]
[402644882,1768743437485,-616.96259191,9.998e-05,2]
[402644883,1768743437508,-349.0012915,9.998e-05,2]
[402644884,1768743439005,-150.9987085,9.998e-05,2]
[402644885,1768743439029,-616.96259191,9.998e-05,2]
[402644886,1768743439051,-232.03869959,9.998e-05,2]
[402644887,1768743439378,-267.96130041,9.998e-05,2]
[402644888,1768743439402,-616.96259191,9.998e-05,2]
[402644889,1768743439424,-115.07610768,9.998e-05,2]
[402644890,1768743440941,-501.88648423,9.998e-05,2]
[402644891,1768743440966,-498.11351577,9.998e-05,2]
[402644892,1768743441629,-1.88648423,9.998e-05,2]
[402644893,1768743441653,-616.96259191,9.998e-05,2]
[402644894,1768743441675,-381.15092386,9.998e-05,2]
[402644895,1768743443048,-118.84907614,9.998e-05,2]
[402644896,1768743443083,-500.0,9.998e-05,2]
[402644897,1768743443110,-381.15092386,9.999e-05,2]
[402644898,1768743444752,-500.0,9.998e-05,2]
[402644899,1768743444775,-500.0,9.998e-05,2]
[402644901,1768743446126,-500.0,9.998e-05,2]
[402644902,1768743446147,-500.0,9.998e-05,2]
[402644903,1768743450448,-229.49919296,9.998e-05,2]
[402644904,1768743450471,-270.50080704,9.998e-05,2]
[402644907,1768743457279,187.58816763,9.322e-05,2]
[402644908,1768743471494,-152.11951346,9.799e-05,2]
[402644909,1768743473466,-260.57937042,9.799e-05,2]
[402644911,1768743474726,3456.92183237,9.62e-05,2]
[402644912,1768743474747,259.77005851,9.62e-05,2]
[402644918,1768743477214,-248.57189653,9.799e-05,2]
[402644919,1768743479979,-173.51716562,9.799e-05,2]
[402644920,1768743481397,-332.3,9.799e-05,2]
[402644921,1768743483816,663.72,2.997e-05,2]
[402644922,1768743484072,663.72,2.997e-05,2]
[402644923,1768743485096,-184.95,9.798e-05,2]
[402644940,1768743490584,753.17,7.47e-05,2]
[402644941,1768743490995,1506.35,8.149e-05,2]
[402644942,1768743491409,2259.52,8.828e-05,2]
[402644943,1768743491828,3012.69,9.507e-05,2]
[402644944,1768743496549,422.08906215,9.62e-05,2]
[402644958,1768743565707,458.98087934,9.326e-05,2]
[402644959,1768743565730,323.14998262,9.326e-05,2]
[402644960,1768743574604,723.19,7.54e-05,2]
[402644961,1768743575033,1446.39,8.226e-05,2]
[402644962,1768743575430,2169.58,8.911e-05,2]
[402644963,1768743575567,-22.76430093,9.798e-05,2]
[402644964,1768743575587,-977.23569907,9.799e-05,2]
[402644965,1768743575841,2892.78,9.597e-05,2]
[402644966,1768743578920,-1000.0,9.799e-05,2]
[402644967,1768743579978,-1000.0,9.799e-05,2]
[402644968,1768743581185,-855.6763549,9.799e-05,2]
[402644969,1768743581206,-144.3236451,9.898e-05,2]
[402644970,1768743582253,-1000.0,9.898e-05,2]
[402644971,1768743583364,-1000.0,9.898e-05,2]
[402644972,1768743584773,-1000.0,9.898e-05,2]
[402644973,1768743585938,-1000.0,9.898e-05,2]
[402644974,1768743587068,-855.6763549,9.898e-05,2]
[402644975,1768743589360,2000.0,9.9e-05,2]
[402644976,1768743597448,501.06485076,9.9e-05,2]
[402644983,1768743621450,-245.85,9.761e-05,2]
[402644984,1768743623573,-234.02452764,9.761e-05,2]
[402644985,1768743625058,-178.36947992,9.761e-05,2]
[402644987,1768743653944,686.97,7.817e-05,2]
[402644988,1768743654370,1373.94,8.528e-05,2]
[402644989,1768743654788,2060.91,9.239e-05,2]
[402644991,1768743671261,466.72059682,9.607e-05,2]
[402644994,1768743718406,-1000.0,9.761e-05,2]
[402644995,1768743719775,-1000.0,9.761e-05,2]
[402644996,1768743721026,-1000.0,9.761e-05,2]
[402644997,1768743733875,662.94,7.536e-05,2]
[402644998,1768743734262,1325.88,8.221e-05,2]
[402644999,1768743734669,1988.82,8.906e-05,2]
[402645000,1768743735071,1433.82940318,9.591e-05,2]
[402645001,1768743735100,1217.93059682,9.591e-05,2]
[402645002,1768743737772,-1000.0,9.761e-05,2]
[402645003,1768743742615,-341.75599244,9.761e-05,2]
[402645004,1768743756050,165.24799569,9.274e-05,2]
[402645005,1768743757094,5000.0,9.8e-05,2]
[402645007,1768743805753,-211.33977812,9.724e-05,2]
[402645008,1768743812070,639.72,7.512e-05,2]
[402645009,1768743812482,1279.44,8.195e-05,2]
[402645010,1768743812952,1919.16,8.878e-05,2]
[402645011,1768743813371,2558.88,9.561e-05,2]
[402645012,1768743815822,211.32881313,9.604e-05,2]
[402645013,1768743840981,-288.66022188,9.724e-05,2]
[402645014,1768743841000,-154.87231411,9.724e-05,2]
[402645015,1768743841021,-228.49886089,9.724e-05,2]
[402645016,1768743841045,-327.96860312,9.76e-05,2]
[402645017,1768743845533,-1000.0,9.76e-05,2]
[402645018,1768743848212,-1000.0,9.76e-05,2]
[402645019,1768743849493,-1000.0,9.76e-05,2]
[402645020,1768743891997,559.21,7.487e-05,2]
[402645021,1768743892409,1118.42,8.167e-05,2]
[402645022,1768743892811,1677.63,8.848e-05,2]
[402645023,1768743893227,36.22118687,9.528e-05,2]
[402645024,1768743893252,2200.61881313,9.528e-05,2]
[402645025,1768743966309,-189.84,9.71e-05,2]
[402645026,1768743973003,490.02,7.491e-05,2]
[402645027,1768743973446,980.03,8.172e-05,2]
[402645028,1768743973853,1470.05,8.853e-05,2]
[402645029,1768743974264,1960.06,9.535e-05,2]
[402645032,1768744054652,427.65,7.496e-05,2]
[402645034,1768744055059,855.3,8.178e-05,2]
[402645035,1768744055489,1282.95,8.859e-05,2]
[402645036,1768744055908,333.33118687,9.541e-05,2]
[402645037,1768744055943,1377.26881313,9.541e-05,2]
[402645038,1768744059549,167.48441042,9.225e-05,2]
[402645041,1768744134196,373.22,7.489e-05,2]
[402645042,1768744134604,746.44,8.17e-05,2]
[402645043,1768744135009,1119.67,8.85e-05,2]
[402645044,1768744135438,1492.89,9.531e-05,2]
[402645046,1768744154150,4723.03677645,9.604e-05,2]
[402645047,1768744154176,276.96322355,9.604e-05,2]
[402645048,1768744168087,4039.3973762,8.857e-05,2]
[402645049,1768744177227,5000.0,9.604e-05,2]
[402645050,1768744197545,683.64940025,8.857e-05,2]
[402645051,1768744197569,10000.01,8.857e-05,2]
[402645052,1768744197590,10000.01,8.857e-05,2]
[402645053,1768744197616,10000.01,8.857e-05,2]
[402645054,1768744197637,10000.01,8.857e-05,2]
[402645055,1768744197661,10000.01,8.857e-05,2]
[402645056,1768744197685,10000.01,8.857e-05,2]
[402645057,1768744197707,10000.01,8.857e-05,2]
[402645058,1768744197729,423.29954675,8.857e-05,2]
[402645059,1768744202434,-554.77408138,9.604e-05,2]
[402645060,1768744205044,-157.98,9.604e-05,2]
[402645061,1768744208580,-358.97591862,9.604e-05,2]
[402645062,1768744210304,500.0,9.584e-05,2]
[402645064,1768744214167,-3928.27,9.604e-05,2]
[402645065,1768744214196,-554.0,9.604e-05,2]
[402645066,1768744215817,332.78,7.5e-05,2]
[402645067,1768744216239,665.56,8.182e-05,2]
[402645068,1768744216655,37.13,8.864e-05,2]
[402645069,1768744216681,961.21,8.864e-05,2]
[402645070,1768744217066,1331.13,9.545e-05,2]
[402645071,1768744222275,5000.0,9.604e-05,2]
[402645116,1768744232579,-500.0,9.721e-05,2]
[402645118,1768744232589,-500.0,9.722e-05,2]
[402645120,1768744232598,-472.20386923,9.809e-05,2]
[402645122,1768744232607,-121.76087685,9.855e-05,2]
[402645388,1768744238443,-178.23912315,9.855e-05,2]
[402645389,1768744238453,-136.23940355,9.855e-05,2]
[402645390,1768744238464,-163.76059645,9.855e-05,2]
[402645392,1768744238475,-300.0,9.855e-05,2]
[402645394,1768744238485,-300.0,9.855e-05,2]
[402645396,1768744238494,-1200.0,9.855e-05,2]
[402645398,1768744238504,-500.0,9.856e-05,2]
[402645399,1768744238513,-500.0,9.856e-05,2]
[402645401,1768744238523,-500.0,9.856e-05,2]
[402645402,1768744238780,-500.0,9.856e-05,2]
[402645403,1768744238834,-500.0,9.856e-05,2]
[402645404,1768744238845,-500.0,9.856e-05,2]
[402645405,1768744238856,-500.0,9.856e-05,2]
[402645406,1768744238868,-500.0,9.856e-05,2]
[402645407,1768744238882,-500.0,9.856e-05,2]
[402645408,1768744238893,-500.0,9.856e-05,2]
[402645409,1768744238903,-572.9499193,9.856e-05,2]
[402645410,1768744238913,-500.0,9.856e-05,2]
[402645411,1768744238923,-500.0,9.856e-05,2]
[402645412,1768744238934,-500.0,9.856e-05,2]
[402645413,1768744238944,-500.0,9.856e-05,2]
[402645414,1768744238953,-500.0,9.856e-05,2]
[402645415,1768744238963,-500.0,9.856e-05,2]
[402645416,1768744238973,-500.0,9.856e-05,2]
[402645417,1768744238983,-500.0,9.856e-05,2]
[402645418,1768744238992,-500.0,9.856e-05,2]
[402645419,1768744239002,-500.0,9.856e-05,2]
[402645420,1768744239012,-500.0,9.856e-05,2]
[402645421,1768744239022,-500.0,9.856e-05,2]
[402645422,1768744239031,-500.0,9.856e-05,2]
[402645423,1768744239041,-500.0,9.856e-05,2]
[402645424,1768744239052,-500.0,9.856e-05,2]
[402645425,1768744239062,-500.0,9.856e-05,2]
[402645426,1768744239072,-500.0,9.856e-05,2]
[402645427,1768744239082,-500.0,9.856e-05,2]
[402645428,1768744239092,-500.0,9.856e-05,2]
[402645429,1768744239101,-242.98749174,9.856e-05,2]
[402645430,1768744239111,-500.0,9.856e-05,2]
[402645431,1768744239121,-433.08360363,9.856e-05,2]
[402645432,1768744239132,-500.0,9.856e-05,2]
[402645433,1768744239142,-500.0,9.856e-05,2]
[402645434,1768744239151,-500.0,9.856e-05,2]
[402645435,1768744239161,-500.0,9.856e-05,2]
[402645436,1768744239171,-500.0,9.856e-05,2]
[402645437,1768744239181,-500.0,9.856e-05,2]
[402645438,1768744239191,-500.0,9.856e-05,2]
[402645439,1768744239201,-500.0,9.856e-05,2]
[402645440,1768744239211,-500.0,9.856e-05,2]
[402645441,1768744239220,-500.0,9.856e-05,2]
[402645442,1768744239229,-500.0,9.856e-05,2]
[402645443,1768744239239,-500.0,9.856e-05,2]
[402645444,1768744239248,-500.0,9.856e-05,2]
[402645445,1768744239259,-500.0,9.856e-05,2]
[402645446,1768744239268,-500.0,9.856e-05,2]
[402645447,1768744239279,-545.54841131,9.856e-05,2]
[402645448,1768744239292,-500.0,9.856e-05,2]
[402645449,1768744239302,-500.0,9.856e-05,2]
[402645450,1768744239312,-500.0,9.856e-05,2]
[402645451,1768744239322,-500.0,9.856e-05,2]
[402645452,1768744239331,-519.26377752,9.856e-05,2]
[402645453,1768744239341,-519.26377752,9.856e-05,2]
[402645454,1768744239350,-519.26377752,9.856e-05,2]
[402645455,1768744239360,-519.26377752,9.856e-05,2]
[402645456,1768744239370,-519.26377752,9.856e-05,2]
[402645457,1768744239380,-519.26377752,9.856e-05,2]
[402645458,1768744239390,-519.26377752,9.856e-05,2]
[402645459,1768744239399,-519.26377752,9.856e-05,2]
[402645460,1768744239408,-519.26377752,9.856e-05,2]
[402645461,1768744239418,-519.26377752,9.856e-05,2]
[402645462,1768744239428,-519.26377752,9.856e-05,2]
[402645463,1768744239439,-519.26377752,9.856e-05,2]
[402645464,1768744239449,-519.26377752,9.856e-05,2]
[402645465,1768744239459,-519.26377752,9.856e-05,2]
[402645466,1768744239468,-519.26377752,9.856e-05,2]
[402645467,1768744239478,-519.26377752,9.856e-05,2]
[402645468,1768744239487,-519.26377752,9.856e-05,2]
[402645469,1768744239497,-519.26377752,9.856e-05,2]
[402645470,1768744239507,-519.26377752,9.856e-05,2]
[402645471,1768744239516,-519.26377752,9.856e-05,2]
[402645472,1768744239526,-519.26377752,9.856e-05,2]
[402645473,1768744239535,-519.26377752,9.856e-05,2]
[402645474,1768744239544,-519.26377752,9.856e-05,2]
[402645475,1768744239553,-519.26377752,9.856e-05,2]
[402645476,1768744239563,-519.26377752,9.856e-05,2]
[402645477,1768744239572,-519.26377752,9.856e-05,2]
[402645478,1768744239582,-519.26377752,9.856e-05,2]
[402645479,1768744239591,-519.26377752,9.856e-05,2]
[402645480,1768744239601,-519.26377752,9.856e-05,2]
[402645481,1768744239610,-519.26377752,9.856e-05,2]
[402645482,1768744239627,-519.26377752,9.856e-05,2]
[402645483,1768744239637,-519.26377752,9.856e-05,2]